Workbook

Sheet Sheet5
A1: Width (ft) | B1: 50 | D1: Chiffon | E1: Tulle | H1: fabric Choice | J1: Light choice | K1: Spacing | M1: Setup
A2: Length (ft) | B2: 65 | D2: =((E19/10)*((E21*1.3)+8)) -> 175.0833333 | E2: =D2*0.2 -> 35.01666667 | H2: 1 | J2: 1 | K2: 7 | M2: 2
A3: Width (yrds) | B3: =B1/3 -> 16.66666667 | J3: =IF(J2>1,C7:C13,B7:B13) -> 577.775 | K3: =IF(K2=1,J3) -> FALSE | M3: =IF(M2=2,M6,0) -> 395.3191667
A4: Length (yrds) | B4: =B2/3 -> 21.66666667 | F4: =H3=E2+B12 -> FALSE | J4: 385.1833333 | K4: =IF(K2=2,J4) -> FALSE | M4: =IF(M2=2,M6,0) -> 395.3191667
J5: 288.8875 | K5: =IF(K2=3,J5) -> FALSE
B6: LED lights | C6: Globe Lights | E6: Setup | G6: Total | J6: 231.11 | K6: =IF(K2=4,J6) -> FALSE | M6: =IF(B29+B52<250,250,250+((B29+B52)/100)*50) -> 395.3191667
A7: 2 ft | B7: =((E19/2)*((E17*1.3)+24))*0.22 -> 577.775 | C7: =((E19/2)*((E17*1.3)+24))*0.5 -> 1313.125 | E7: =250+(D2/4) -> 293.7708333 | G7: =D2 or G7E2 +B7 or B8 or B9 or B10 or B11 or B12 or B13 or C7 or C8 or C9 or C10 or C11 or C12 or C13 or ->  | J7: 192.5916667 | K7: =IF(K2=5,J7) -> FALSE
A8: 3 ft | B8: =((E19/3)*((E17*1.3)+24))*0.22 -> 385.1833333 | C8: =((E19/3)*((E17*1.3)+24))*0.5 -> 875.4166667 | J8: 144.44375 | K8: =IF(K2=6,J8) -> FALSE | M8: =IF(M2=1,0,M6) -> 395.3191667
A9: 4 ft | B9: =((E19/4)*((E17*1.3)+24))*0.22 -> 288.8875 | C9: =((E19/4)*((E17*1.3)+24))*0.5 -> 656.5625 | J9: 115.555 | K9: =IF(K2=7,J9) -> 115.555
A10: 5 ft | B10: =((E19/5)*((E17*1.3)+24))*0.22 -> 231.11 | C10: =((E19/5)*((E17*1.3)+24))*0.5 -> 525.25 | K10: =SUM(K3:K9) -> 115.555
A11: 6 ft | B11: =((E19/6)*((E17*1.3)+24))*0.22 -> 192.5916667 | C11: =((E19/6)*((E17*1.3)+24))*0.5 -> 437.7083333
A12: 8 ft | B12: =((E19/8)*((E17*1.3)+24))*0.22 -> 144.44375 | C12: =((E19/8)*((E17*1.3)+24))*0.5 -> 328.28125
A13: 10 ft | B13: =((E19/10)*((E17*1.3)+24))*0.22 -> 115.555 | C13: =((E19/10)*((E17*1.3)+24))*0.5 -> 262.625
B16: Venue Dimensions
B17: Width (ft)- short side | E17: 55
B19: Length (ft)- long side | E19: 55
B21: Width (yrds)- short side | E21: =E17/3 -> 18.33333333
B23: Length (yrds) - long side | E23: =E19/3 -> 18.33333333
B25: Fabric Choices
B28: Price of Fabric
B29: =IF(H2=1,D2,E2) -> 175.0833333
B31: Light Choices
B32: LED lights
B34: Globe Lights
B36: Light Spacing
E37: 2 ft
E39: 3ft
E41: 4ft
E43: 5ft
E45: 6ft
E47: 8ft
E49: 10ft
B51: Light Pricing
B52: =K10 -> 115.555
B54: Setup
B57: Setup Price
B58: =M8 -> 395.3191667
B60: Total
B61: =B29+B52+B58 -> 685.9575
